fUST/lending_fUST_20250610
["ID","MTS","AMOUNT","RATE_DAILY","PERIOD"]
[365225401,1749547847655,-68.25063765,0.00021095,4]
[365225403,1749547847667,-431.74936235,0.00021095,4]
[365225405,1749547847677,-500.0,0.00021095,4]
[365225407,1749547847686,-500.0,0.00021095,4]
[365225409,1749547847697,-55.94104901,0.00021095,4]
[365225902,1749548115594,-5000.0,0.00019505,2]
[365225903,1749548115617,-201.1011484,0.00019702,2]
[365225904,1749548115796,-378.8988516,0.00019885,2]
[365225905,1749548150820,235.34531443,0.00023233,120]
[365225907,1749548180638,-5000.0,0.00019686,2]
[365225944,1749548763380,5000.0,0.00018,2]
[365225945,1749548779875,1686.71710747,0.00018,2]
[365225946,1749548779901,3313.28289253,0.00018,2]
[365225948,1749548795924,5000.0,0.00018,2]
[365225949,1749548811053,4244.04810747,0.00018,2]
[365225950,1749548811077,755.95189253,0.00018,2]
[365225951,1749548826475,5000.0,0.00018,2]
[365225952,1749548841668,5000.0,0.00018,2]
[365225954,1749548847509,307.345596,0.00013699,2]
[365225955,1749548858081,1494.03351147,0.00018,2]
[365225956,1749548858105,3505.96648853,0.00018,2]
[365225957,1749548873924,5000.0,0.00018,2]
[365225958,1749548889976,4051.36451147,0.00018,2]
[365225959,1749548889999,948.63548853,0.00018,2]
[365225960,1749548905362,5000.0,0.00018,2]
[365225962,1749548921229,5000.0,0.00018,2]
[365225964,1749548937665,1608.69551147,0.00018,2]
[365225965,1749548937687,3391.30448853,0.00018,2]
[365225966,1749548953218,2355.85795177,0.00018,2]
[365226024,1749549032001,-1200.0,0.00018096,2]
[365226026,1749549032011,-4942.9006736,0.00018097,2]
[365226028,1749549032023,-5057.0993264,0.00018097,2]
[365226030,1749549032032,-300.0,0.0001826,2]
[365226032,1749549032042,-300.0,0.0001826,2]
[365226034,1749549032052,-300.0,0.0001826,2]
[365226036,1749549032062,-300.0,0.0001826,2]
[365226038,1749549032071,-3619.41146,0.00018261,2]
[365226040,1749549032080,-1062.6032136,0.000189,2]
[365226055,1749549032219,-2484.60358378,0.000189,2]
[365226057,1749549032229,-300.0,0.00018974,2]
[365226059,1749549032239,-249.83082827,0.00019139,2]
[365226061,1749549032250,-24900.0,0.00019157,2]
[365226063,1749549032260,-430.2636526,0.00019239,2]
[365226065,1749549032269,-214.134976,0.00019247,2]
[365226067,1749549032279,-14442.0498302,0.00019423,2]
[365226069,1749549032288,-751.937866,0.00019423,2]
[365226071,1749549032298,-500.0,0.00019691,2]
[365226073,1749549032307,-156.1728716,0.00019691,2]
[365226075,1749549032316,-162.09117613,0.00019691,2]
[365226077,1749549032326,-1563.0,0.00019692,2]
[365226079,1749549032335,-293.0281551,0.000197,2]
[365226081,1749549032345,-1680.0,0.0001984,2]
[365226083,1749549032356,-353.75222184,0.00019885,2]
[365226085,1749549032368,-859.67,0.00019895,2]
[365226087,1749549032377,-420.0,0.00019918,2]
[365226089,1749549032387,-420.0,0.00019918,2]
[365226091,1749549032396,-357.0,0.00019918,2]
[365226093,1749549032405,-249.83082821,0.00019931,2]
[365226095,1749549032414,-3000.0,0.0002,2]
[365226097,1749549032424,-613.2962914,0.000201,2]
[365226099,1749549032434,-613.29629123,0.000201,2]
[365226101,1749549032443,-616.12524882,0.000201,2]
[365226103,1749549032453,-307.345596,0.00020187,2]
[365226105,1749549032463,-613.29629123,0.00020245,2]
[365226107,1749549032472,-613.29629123,0.00020417,3]
[365226108,1749549032482,-613.29629123,0.0002059,3]
[365226110,1749549032492,-420.0,0.00020682,2]
[365226112,1749549032501,-249.83082821,0.00020724,2]
[365226114,1749549032510,-613.29629123,0.00020762,3]
[365226116,1749549032520,-1719.34,0.00020843,2]
[365226118,1749549032530,-613.29629123,0.00020934,4]
[365226120,1749549032539,-1625.03251491,0.00020995,2]
[365226122,1749549032549,-412524.66388,0.00020999,2]
[365226124,1749549032559,-20139.14800037,0.00021,7]
[365226126,1749549032569,-11858.11761888,0.00021,7]
[365226128,1749549032579,-305.44,0.00021085,3]
[365226130,1749549032588,-152.72,0.00021085,3]
[365226132,1749549032597,-458.19,0.00021085,3]
[365226134,1749549032607,-190.19,0.00021094,2]
[365226136,1749549032616,-500.0,0.00021094,2]
[365226138,1749549032625,-500.0,0.00021094,2]
[365226140,1749549032635,-500.0,0.00021094,2]
[365226143,1749549032645,-500.0,0.00021094,2]
[365226145,1749549032655,-500.0,0.00021094,2]
[365226146,1749549032665,-500.0,0.00021094,2]
[365226148,1749549032674,-460.0,0.00021095,4]
[365226150,1749549032684,-460.0,0.00021095,4]
[365226152,1749549032693,-460.0,0.00021095,4]
[365226154,1749549032703,-320.0,0.00021095,4]
[365226156,1749549032712,-380.0,0.00021095,4]
[365226158,1749549032722,-380.0,0.00021095,4]
[365226160,1749549032732,-370.0,0.00021095,4]
[365226162,1749549032742,-440.0,0.00021095,4]
[365226164,1749549032751,-430.0,0.00021095,4]
[365226166,1749549032761,-483.17,0.00021095,4]
[365226168,1749549032771,-435.69974064,0.00021095,4]
[365226170,1749549032780,-460.0,0.00021095,4]
[365226172,1749549032790,-460.0,0.00021095,4]
[365226174,1749549032800,-420.0,0.00021095,4]
[365226176,1749549032809,-440.0,0.00021095,4]
[365226178,1749549032818,-371.04285288,0.00021095,4]
[365226180,1749549032828,-306.1858455,0.00021095,4]
[365226182,1749549032837,-460.0,0.00021095,4]
[365226184,1749549032847,-420.0,0.00021095,4]
[365226186,1749549032856,-440.0,0.00021095,4]
[365226188,1749549032866,-440.0,0.00021095,4]
[365226190,1749549032875,-460.0,0.00021095,4]
[365226192,1749549032885,-357.40629716,0.00021095,4]
[365226207,1749549033022,-440.0,0.00021095,4]
[365226209,1749549033032,-460.0,0.00021095,4]
[365226211,1749549033043,-531.75,0.00021095,4]
[365226213,1749549033054,-531.75,0.00021095,4]
[365226215,1749549033064,-531.75,0.00021095,4]
[365226217,1749549033075,-531.75,0.00021095,4]
[365226219,1749549033085,-420.0,0.00021095,4]
[365226221,1749549033096,-460.0,0.00021095,4]
[365226223,1749549033106,-460.0,0.00021095,4]
[365226225,1749549033116,-410.0,0.00021095,4]
[365226227,1749549033126,-440.0,0.00021095,4]
[365226229,1749549033136,-440.0,0.00021095,4]
[365226231,1749549033147,-410.0,0.00021095,4]
[365226233,1749549033158,-440.0,0.00021095,4]
[365226235,1749549033169,-380.0,0.00021095,4]
[365226237,1749549033182,-415.0,0.00021095,4]
[365226239,1749549033192,-460.0,0.00021095,4]
[365226241,1749549033202,-460.0,0.00021095,4]
[365226243,1749549033212,-370.0,0.00021095,4]
[365226245,1749549033222,-460.0,0.00021095,4]
[365226247,1749549033234,-440.0,0.00021095,4]
[365226249,1749549033245,-468.31550143,0.00021095,4]
[365226251,1749549033255,-440.0,0.00021095,4]
[365226253,1749549033266,-460.0,0.00021095,4]
[365226255,1749549033276,-460.0,0.00021095,4]
[365226257,1749549033286,-460.0,0.00021095,4]
[365226259,1749549033297,-400.0,0.00021095,4]
[365226261,1749549033306,-460.0,0.00021095,4]
[365226263,1749549033316,-460.0,0.00021095,4]
[365226265,1749549033326,-460.0,0.00021095,4]
[365226267,1749549033335,-469.55745892,0.00021095,4]
[365226269,1749549033346,-460.0,0.00021095,4]
[365226271,1749549033357,-460.0,0.00021095,4]
[365226273,1749549033367,-460.0,0.00021095,4]
[365226275,1749549033378,-460.0,0.00021095,4]
[365226277,1749549033389,-460.0,0.00021095,4]
[365226279,1749549033399,-460.0,0.00021095,4]
[365226281,1749549033409,-460.0,0.00021095,4]
[365226283,1749549033419,-460.0,0.00021095,4]
[365226285,1749549033429,-375.95126917,0.00021095,4]
[365226287,1749549033439,-460.0,0.00021095,4]
[365226289,1749549033449,-460.0,0.00021095,4]
[365226290,1749549033459,-380.0,0.00021095,4]
[365226291,1749549033470,-460.0,0.00021095,4]
[365226292,1749549033481,-272.78424097,0.00021095,4]
[365226293,1749549033491,-370.0,0.00021095,4]
[365226294,1749549033501,-430.0,0.00021095,4]
[365226295,1749549033511,-430.0,0.00021095,4]
[365226296,1749549033521,-460.0,0.00021095,4]
[365226297,1749549033531,-173.29616574,0.00021095,4]
[365226298,1749549033542,-460.0,0.00021095,4]
[365226299,1749549033552,-374.91175788,0.00021095,4]
[365226300,1749549033562,-460.0,0.00021095,4]
[365226301,1749549033573,-532.76872918,0.00021095,4]
[365226302,1749549033585,-528.15264217,0.00021095,4]
[365226303,1749549033595,-400.0,0.00021095,4]
[365226304,1749549033606,-350.0,0.00021095,4]
[365226305,1749549033616,-460.0,0.00021095,4]
[365226306,1749549033626,-460.0,0.00021095,4]
[365226307,1749549033637,-360.0,0.00021095,4]
[365226308,1749549033647,-500.0,0.00021095,4]
[365226309,1749549033657,-460.0,0.00021095,4]
[365226310,1749549033667,-460.0,0.00021095,4]
[365226311,1749549033678,-460.0,0.00021095,4]
[365226312,1749549033688,-400.0,0.00021095,4]
[365226313,1749549033698,-460.0,0.00021095,4]
[365226314,1749549033708,-1552.48,0.00021095,4]
[365226315,1749549033718,-460.0,0.00021095,4]
[365226316,1749549033728,-460.0,0.00021095,4]
[365226318,1749549033737,-447.84,0.00021095,4]
[365226320,1749549033747,-400.6395,0.00021095,4]
[365226322,1749549033757,-460.0,0.00021095,4]
[365226324,1749549033767,-460.0,0.00021095,4]
[365226326,1749549033777,-460.0,0.00021095,4]
[365226328,1749549033787,-460.0,0.00021095,4]
[365226330,1749549033796,-400.0,0.00021095,4]
[365226332,1749549033806,-460.0,0.00021095,4]
[365226334,1749549033816,-460.0,0.00021095,4]
[365226336,1749549033826,-490.79,0.00021095,4]
[365226338,1749549033836,-500.0,0.00021095,4]
[365226340,1749549033845,-500.0,0.00021095,4]
[365226342,1749549033856,-500.0,0.00021095,4]
[365226344,1749549033865,-500.0,0.00021095,4]
[365226346,1749549033876,-500.0,0.00021095,4]
[365226348,1749549033885,-460.0,0.00021095,4]
[365226350,1749549033895,-460.0,0.00021095,4]
[365226352,1749549033905,-460.0,0.00021095,4]
[365226354,1749549033915,-460.0,0.00021095,4]
[365226355,1749549033925,-460.0,0.00021095,4]
[365226357,1749549033935,-184.65071865,0.00021095,4]
[365226359,1749549033944,-340.0,0.00021095,4]
[365226361,1749549033954,-430.0,0.00021095,4]
[365226363,1749549033964,-430.0,0.00021095,4]
[365226365,1749549033974,-460.0,0.00021095,4]
[365226367,1749549033984,-269.97000075,0.00021095,4]
[365226369,1749549033993,-440.71709384,0.00021095,4]
[365226371,1749549034003,-460.0,0.00021095,4]
[365226373,1749549034013,-460.0,0.00021095,4]
[365226375,1749549034023,-340.0,0.00021095,4]
[365226377,1749549034033,-460.0,0.00021095,4]
[365226379,1749549034044,-440.0,0.00021095,4]
[365226381,1749549034054,-460.0,0.00021095,4]
[365226383,1749549034064,-515.02573627,0.00021095,4]
[365226385,1749549034074,-460.0,0.00021095,4]
[365226387,1749549034085,-430.0,0.00021095,4]
[365226389,1749549034094,-427.92,0.00021095,4]
[365226391,1749549034104,-460.0,0.00021095,4]
[365226393,1749549034114,-460.0,0.00021095,4]
[365226395,1749549034125,-384.94576001,0.00021095,4]
[365226397,1749549034135,-430.0,0.00021095,4]
[365226399,1749549034146,-430.0,0.00021095,4]
[365226401,1749549034156,-430.0,0.00021095,4]
[365226403,1749549034166,-460.0,0.00021095,2]
[365226405,1749549034180,-460.0,0.00021095,4]
[365226407,1749549034189,-460.0,0.00021095,4]
[365226409,1749549034199,-460.0,0.00021095,4]
[365226411,1749549034209,-460.0,0.00021095,4]
[365226413,1749549034219,-380.0,0.00021095,4]
[365226415,1749549034229,-460.0,0.00021095,4]
[365226417,1749549034239,-460.0,0.00021095,4]
[365226419,1749549034248,-1234.46,0.00021095,4]
[365226421,1749549034261,-460.0,0.00021095,4]
[365226423,1749549034271,-1867.85,0.00021095,4]
[365226425,1749549034281,-460.0,0.00021095,4]
[365226427,1749549034293,-460.0,0.00021095,4]
[365226429,1749549034303,-460.0,0.00021095,4]
[365226431,1749549034313,-460.0,0.00021095,4]
[365226433,1749549034323,-460.0,0.00021095,4]
[365226435,1749549034333,-460.0,0.00021095,4]
[365226437,1749549034343,-460.0,0.00021095,4]
[365226439,1749549034354,-1551.85,0.00021095,4]
[365226441,1749549034364,-430.0,0.00021095,4]
[365226443,1749549034374,-3105.04,0.00021095,4]
[365226445,1749549034384,-275.34171252,0.00021095,4]
[365226447,1749549034394,-460.0,0.00021095,4]
[365226449,1749549034403,-460.0,0.00021095,4]
[365226451,1749549034413,-876.04,0.00021095,4]
[365226453,1749549034422,-377.22881143,0.00021095,4]
[365226455,1749549034432,-460.0,0.00021095,4]
[365226457,1749549034441,-1887.89,0.00021095,4]
[365226459,1749549034451,-460.0,0.00021095,4]
[365226461,1749549034460,-460.0,0.00021095,4]
[365226463,1749549034470,-460.0,0.00021095,4]
[365226464,1749549034480,-460.0,0.00021095,4]
[365226465,1749549034489,-460.0,0.00021095,4]
[365226466,1749549034499,-461.47155028,0.00021095,4]
[365226467,1749549034509,-460.0,0.00021095,4]
[365226468,1749549034518,-430.0,0.00021095,4]
[365226469,1749549034528,-460.0,0.00021095,4]
[365226470,1749549034537,-460.0,0.00021095,4]
[365226471,1749549034547,-1801.47,0.00021095,4]
[365226472,1749549034557,-440.0,0.00021095,4]
[365226473,1749549034566,-460.0,0.00021095,4]
[365226474,1749549034575,-460.0,0.00021095,4]
[365226475,1749549034585,-460.0,0.00021095,4]
[365226476,1749549034594,-350.0,0.00021095,2]
[365226477,1749549034603,-460.0,0.00021095,4]
[365226478,1749549034613,-380.0,0.00021095,4]
[365226479,1749549034623,-460.0,0.00021095,4]
[365226480,1749549034632,-460.0,0.00021095,4]
[365226481,1749549034641,-460.0,0.00021095,4]
[365226482,1749549034650,-460.0,0.00021095,4]
[365226483,1749549034660,-460.0,0.00021095,4]
[365226484,1749549034669,-460.0,0.00021095,4]
[365226485,1749549034679,-795.7,0.00021095,4]
[365226486,1749549034689,-1252.4,0.00021095,4]
[365226488,1749549034699,-460.0,0.00021095,4]
[365226489,1749549034709,-460.0,0.00021095,4]
[365226490,1749549034718,-460.0,0.00021095,4]
[365226491,1749549034728,-460.0,0.00021095,4]
[365226492,1749549034737,-1864.06,0.00021095,4]
[365226493,1749549034747,-304.91553664,0.00021095,4]
[365226494,1749549034757,-460.0,0.00021095,4]
[365226495,1749549034767,-460.0,0.00021095,4]
[365226496,1749549034776,-460.0,0.00021095,4]
[365226497,1749549034786,-605.9,0.00021095,4]
[365226498,1749549034795,-460.0,0.00021095,4]
[365226499,1749549034805,-783.47,0.00021095,4]
[365226500,1749549034814,-463.64,0.00021095,4]
[365226501,1749549034824,-400.0,0.00021095,4]
[365226502,1749549034833,-460.0,0.00021095,4]
[365226503,1749549034843,-460.0,0.00021095,4]
[365226504,1749549034853,-460.0,0.00021095,4]
[365226505,1749549034862,-326.23,0.000211,2]
[365226506,1749549034872,-1109.97,0.000211,2]
[365226507,1749549034881,-613.29629123,0.00021107,4]
[365226508,1749549034892,-1625.03251489,0.00021166,2]
[365226509,1749549034902,-213.1263252,0.00021196,2]
[365226510,1749549034911,-834.9046531,0.00021196,2]
[365226511,1749549034921,-842.5625,0.00021196,2]
[365226512,1749549034931,-160.0,0.00021196,2]
[365226513,1749549034940,-160.0,0.00021196,2]
[365226514,1749549034950,-229.6792923,0.00021196,2]
[365226515,1749549034959,-160.0,0.00021196,2]
[365226516,1749549034969,-160.0,0.00021196,2]
[365226517,1749549034978,-11858.11761888,0.00021196,2]
[365226518,1749549034988,-424.12530924,0.00021196,2]
[365226519,1749549034997,-160.0,0.00021196,2]
[365226520,1749549035007,-160.0,0.00021198,2]
[365226521,1749549035017,-500.0,0.00021206,4]
[365226522,1749549035027,-531.75,0.00021216,4]
[365226523,1749549035036,-511.28541419,0.00021273,2]
[365226524,1749549035046,-501.13082173,0.00021273,2]
[365226525,1749549035055,-500.0,0.00021273,2]
[365226526,1749549035065,-500.0,0.00021273,2]
[365226527,1749549035075,-500.0,0.00021273,2]
[365226528,1749549035085,-500.10828756,0.00021273,2]
[365226529,1749549035095,-500.0,0.00021273,2]
[365226530,1749549035104,-500.0,0.00021273,2]
[365226531,1749549035114,-504.21706496,0.00021273,2]
[365226532,1749549035124,-153.38429643,0.00021273,2]
[365226533,1749549035133,-613.29629123,0.00021279,5]
[365226534,1749549035143,-81765.60098291,0.00021299,2]
[365226547,1749549038354,-478.31441476,0.00021094,2]
[365226550,1749549038366,-21.68558524,0.00021094,2]
[365226552,1749549038376,-522.05341549,0.00021094,2]
[365226556,1749549038411,-87.36544905,0.00021094,2]
[365226557,1749549038420,-500.0,0.00021094,2]
[365226558,1749549038430,-500.0,0.00021094,2]
[365226559,1749549038439,-500.0,0.00021094,2]
[365226560,1749549038448,-500.0,0.00021094,2]
[365226561,1749549038457,-500.0,0.00021094,2]
[365226562,1749549038467,-500.0,0.00021094,2]
[365226563,1749549038476,-432.3576958,0.00021094,2]
[365226564,1749549038485,-500.0,0.00021094,2]
[365226565,1749549038495,-500.0,0.00021094,2]
[365226566,1749549038504,-500.0,0.00021094,2]
[365226567,1749549038514,-500.0,0.00021094,2]
[365226568,1749549038523,-460.0,0.00021095,4]
[365226569,1749549038533,-460.0,0.00021095,4]
[365226570,1749549038543,-21222.90997914,0.00021299,2]
[365226571,1749549038555,-295418.42948486,0.00021299,2]
[365226572,1749549038564,-1625.03251489,0.00021336,2]
[365226573,1749549038573,-531.75,0.00021368,4]
[365226574,1749549038583,-500.0,0.00021368,4]
[365226575,1749549038592,-500.0,0.00021368,4]
[365226576,1749549038601,-360.0,0.00021369,4]
[365226577,1749549038611,-460.0,0.00021369,4]
[365226578,1749549038620,-360.0,0.00021369,4]
[365226579,1749549038629,-460.0,0.00021369,4]
[365226580,1749549038639,-360.0,0.00021369,4]
[365226581,1749549038648,-360.0,0.00021369,4]
[365226582,1749549038658,-460.0,0.00021369,4]
[365226583,1749549038668,-460.0,0.00021369,4]
[365226584,1749549038678,-460.0,0.00021369,4]
[365226585,1749549038687,-420.0,0.00021369,4]
[365226586,1749549038696,-400.0,0.00021369,4]
[365226587,1749549038706,-460.0,0.00021369,4]
[365226588,1749549038715,-180.24566591,0.00021369,4]
[365226589,1749549038725,-449.71826834,0.00021369,4]
[365226590,1749549038735,-420.0,0.00021369,4]
[365226591,1749549038744,-460.0,0.00021369,4]
[365226592,1749549038753,-460.0,0.00021369,4]
[365226593,1749549038763,-420.0,0.00021369,4]
[365226594,1749549038772,-304.91473207,0.00021369,4]
[365226595,1749549038781,-460.0,0.00021369,4]
[365226596,1749549038791,-460.0,0.00021369,4]
[365226597,1749549038800,-460.0,0.00021369,4]
[365226598,1749549038810,-460.0,0.00021369,4]
[365226599,1749549038819,-460.0,0.00021369,4]
[365226600,1749549038829,-286.52231408,0.00021369,4]
[365226601,1749549038840,-460.0,0.00021369,4]
[365226602,1749549038850,-460.0,0.00021369,4]
[365226603,1749549038860,-460.0,0.00021369,4]
[365226605,1749549038869,-460.0,0.00021369,4]
[365226606,1749549038879,-176.02551417,0.00021369,4]
[365226607,1749549038888,-460.0,0.00021369,4]
[365226608,1749549038897,-460.0,0.00021369,4]
[365226609,1749549038907,-460.0,0.00021369,4]
[365226610,1749549038916,-460.0,0.00021369,4]
[365226611,1749549038932,-460.0,0.00021369,4]
[365226612,1749549038942,-430.0,0.00021369,4]
[365226613,1749549038952,-273.62,0.00021369,4]
[365226614,1749549038962,-460.0,0.00021369,4]
[365226615,1749549038972,-460.0,0.00021369,4]
[365226616,1749549038986,-460.0,0.00021369,4]
[365226617,1749549039000,-460.0,0.00021369,4]
[365226618,1749549039015,-460.0,0.00021369,4]
[365226619,1749549039030,-340.0,0.00021369,4]
[365226620,1749549039043,-490.79,0.00021369,4]
[365226621,1749549039054,-460.0,0.00021369,4]
[365226622,1749549039068,-430.0,0.00021369,4]
[365226623,1749549039081,-310.0,0.00021369,4]
[365226624,1749549039094,-460.0,0.00021369,4]
[365226625,1749549039107,-400.0,0.00021369,4]
[365226626,1749549039120,-460.0,0.00021369,4]
[365226627,1749549039133,-460.0,0.00021369,4]
[365226628,1749549039147,-460.0,0.00021369,4]
[365226629,1749549039161,-460.0,0.00021369,4]
[365226630,1749549039176,-460.0,0.00021369,4]
[365226631,1749549039189,-460.0,0.00021369,4]
[365226632,1749549039203,-460.0,0.00021369,4]
[365226633,1749549039214,-460.0,0.00021369,4]
[365226634,1749549039227,-460.0,0.00021369,2]
[365226635,1749549039240,-460.0,0.00021369,4]
[365226636,1749549039253,-460.0,0.00021369,4]
[365226637,1749549039265,-460.0,0.00021369,4]
[365226638,1749549039277,-460.0,0.00021369,4]
[365226639,1749549039288,-460.0,0.00021369,4]
[365226640,1749549039299,-460.0,0.00021369,4]
[365226641,1749549039310,-1234.46,0.00021369,4]
[365226642,1749549039322,-460.0,0.00021369,4]
[365226643,1749549039334,-1867.85,0.00021369,4]
[365226644,1749549039346,-424.95381953,0.00021369,4]
[365226645,1749549039360,-460.0,0.00021369,4]
[365226646,1749549039372,-460.0,0.00021369,4]
[365226647,1749549039387,-460.0,0.00021369,4]
[365226648,1749549039400,-460.0,0.00021369,4]
[365226649,1749549039412,-460.0,0.00021369,4]
[365226650,1749549039423,-1551.85,0.00021369,4]
[365226651,1749549039433,-3105.04,0.00021369,4]
[365226652,1749549039443,-193.18505387,0.00021369,4]
[365226653,1749549039455,-460.0,0.00021369,4]
[365226654,1749549039469,-876.04,0.00021369,4]
[365226655,1749549039481,-360.0,0.00021369,4]
[365226656,1749549039493,-1887.89,0.00021369,4]
[365226657,1749549039503,-460.0,0.00021369,4]
[365226658,1749549039516,-460.0,0.00021369,4]
[365226659,1749549039527,-460.0,0.00021369,4]
[365226660,1749549039539,-460.0,0.00021369,4]
[365226661,1749549039550,-460.0,0.00021369,4]
[365226662,1749549039560,-460.0,0.00021369,4]
[365226663,1749549039570,-460.0,0.00021369,4]
[365226664,1749549039580,-1801.47,0.00021369,4]
[365226665,1749549039594,-460.0,0.00021369,4]
[365226666,1749549039606,-460.0,0.00021369,4]
[365226667,1749549039617,-460.0,0.00021369,4]
[365226668,1749549039629,-350.0,0.00021369,2]
[365226669,1749549039641,-460.0,0.00021369,4]
[365226670,1749549039652,-460.0,0.00021369,4]
[365226671,1749549039663,-460.0,0.00021369,4]
[365226672,1749549039675,-380.0,0.00021369,4]
[365226673,1749549039687,-460.0,0.00021369,4]
[365226674,1749549039698,-795.7,0.00021369,4]
[365226675,1749549039710,-1252.4,0.00021369,4]
[365226676,1749549039721,-460.0,0.00021369,4]
[365226677,1749549039732,-460.0,0.00021369,4]
[365226678,1749549039745,-420.0,0.00021369,4]
[365226679,1749549039756,-460.0,0.00021369,4]
[365226680,1749549039768,-1864.06,0.00021369,4]
[365226681,1749549039779,-460.0,0.00021369,4]
[365226683,1749549039790,-460.0,0.00021369,4]
[365226684,1749549039801,-460.0,0.00021369,4]
[365226685,1749549039813,-605.9,0.00021369,4]
[365226686,1749549039824,-460.0,0.00021369,4]
[365226688,1749549039835,-783.47,0.00021369,4]
[365226690,1749549039846,-463.64,0.00021369,4]
[365226691,1749549039857,-460.0,0.00021369,4]
[365226692,1749549039868,-460.0,0.00021369,4]
[365226693,1749549039879,-341.25698762,0.00021369,4]
[365226695,1749549039890,-460.0,0.00021369,4]
[365226697,1749549039902,-531.75,0.00021412,4]
[365226700,1749549039913,-500.0,0.00021447,4]
[365226702,1749549039925,-613.29629123,0.00021452,5]
[365226704,1749549039936,-1625.03251489,0.00021507,2]
[365226706,1749549039947,-249.83082821,0.00021516,2]
[365226708,1749549039958,-500.0,0.00021533,2]
[365226710,1749549039969,-151.0,0.000216,4]
[365226712,1749549039981,-613.29629123,0.00021624,5]
[365226715,1749549039993,-531.75,0.00021642,4]
[365226717,1749549040004,-500.0,0.00021642,4]
[365226719,1749549040016,-500.0,0.00021642,4]
[365226721,1749549040028,-460.0,0.00021643,4]
[365226724,1749549040040,-460.0,0.00021643,4]
[365226726,1749549040051,-360.8206644,0.00021643,4]
[365226728,1749549040062,-340.0,0.00021643,4]
[365226730,1749549040075,-576.63861384,0.00021643,4]
[365226732,1749549040086,-460.0,0.00021643,4]
[365226734,1749549040095,-460.0,0.00021643,4]
[365226736,1749549040105,-460.0,0.00021643,4]
[365226738,1749549040115,-460.0,0.00021643,4]
[365226740,1749549040125,-460.0,0.00021643,4]
[365226742,1749549040134,-360.0,0.00021643,4]
[365226744,1749549040144,-460.0,0.00021643,4]
[365226746,1749549040153,-460.0,0.00021643,4]
[365226748,1749549040163,-460.0,0.00021643,4]
[365226750,1749549040173,-460.0,0.00021643,4]
[365226752,1749549040187,-460.0,0.00021643,4]
[365226769,1749549040334,-460.0,0.00021643,4]
[365226772,1749549040352,-460.0,0.00021643,4]
[365226774,1749549040362,-460.0,0.00021643,4]
[365226776,1749549040372,-460.0,0.00021643,4]
[365226778,1749549040382,-460.0,0.00021643,4]
[365226780,1749549040391,-460.0,0.00021643,4]
[365226782,1749549040401,-460.0,0.00021643,4]
[365226784,1749549040410,-460.0,0.00021643,4]
[365226786,1749549040419,-460.0,0.00021643,4]
[365226788,1749549040428,-460.0,0.00021643,4]
[365226790,1749549040438,-460.0,0.00021643,4]
[365226792,1749549040446,-490.79,0.00021643,4]
[365226794,1749549040456,-302.99973219,0.00021643,4]
[365226796,1749549040466,-460.0,0.00021643,4]